Cogmind - Beta 15 @@@ ROGUE MODE // 2025.05.27 @ 15:05:16 Player: Windjigo Result: Destroyed by Z0-WIL(R) with Subdweller Laser Performance ------------- Evolutions (0) 0 Regions Visited (2) 400 Robots Destroyed (34) 170 Value Destroyed (785) 785 Prototype IDs (0) 0 Alien Tech Used (0) 0 Bonus (0) 0 TOTAL SCORE: 1355 Bonus ------- None Cogmind --------- Core Integrity 0/250 Matter 253/300 Energy 111/170 System Corruption 3% Temperature Cool (6) Movement Rolling (120) Ox2 Location -10/Subcaves Parts ------- > --- POWER (1) -------- Makeshift Power Source > --- PROPULSION (2) --- Armored Wheel > --- UTILITY (2) ------ Large Storage Unit Makeshift Light Armor Plating > --- WEAPON (2) ------- Heavy Assault Rifle Battle Rifle > --- INVENTORY (15) --- Subdweller Power Source Subdweller Power Source Armored Wheel Armored Wheel Armored Wheel Subdweller Monowheel Weight Redist. System Subdweller Optics Subdweller Optics Subdweller Laser Subdweller Machine Gun Subdweller Machine Gun Subdweller Shrapnel Launcher Makeshift Spear Piercing Trap Peak State ------------ > --- POWER ------------ Makeshift Power Source > --- PROPULSION ------- Armored Wheel Subdweller Monowheel > --- UTILITY ---------- Large Storage Unit Makeshift Light Armor Plating > --- WEAPON ----------- Heavy Assault Rifle Makeshift Spear > --- INVENTORY -------- Subdweller Power Source Armored Wheel Armored Wheel Armored Wheel Subdweller Monowheel Subdweller Monowheel Weight Redist. System Subdweller Optics Subdweller Laser Heavy Assault Rifle Subdweller Machine Gun Subdweller Machine Gun Subdweller Machine Gun Subdweller Shrapnel Launcher Mining Laser [Rating: 21] Favorites ----------- Power Ion Engine Engine Ion Engine Propulsion Armored Wheel Wheel Armored Wheel Utility Large Storage Unit Device Improved Terrain Scanner Storage Large Storage Unit Protection Makeshift Light Armor Plating Weapon Heavy Assault Rifle Energy Gun EM Pulse Gun Ballistic Gun Heavy Assault Rifle Ballistic Cannon Battle Cannon Piercing Weapon Makeshift Spear Build | -11 -10 -10 ------- Run | Yrd Mat Sub Slots Evolved . | . . . Power . | . . . Propulsion . | . . . Utility . | . . . Weapon . | . . . Parts Attached 29 | 10 6 13 Power 4 | 2 . 2 Engine 4 | 2 . 2 Core . | . . . Reactor . | . . . Propulsion 10 | 4 3 3 Treads . | . . . Leg . | . . . Wheel 10 | 4 3 3 Hover . | . . . Flight . | . . . Utility 4 | 2 1 1 Device 1 | 1 . . Storage 2 | 1 1 . Processor . | . . . Hackware . | . . . Protection 1 | . . 1 Artifact . | . . . Weapon 11 | 2 2 7 Energy Gun 2 | 1 . 1 Energy Cannon . | . . . Ballistic Gun 6 | 1 2 3 Ballistic Cannon 2 | . . 2 Launcher . | . . . Special Weapon . | . . . Impact Weapon . | . . . Slashing Weapon . | . . . Piercing Weapon 1 | . . 1 Special Melee Weapon . | . . . Unidentified Prototypes . | . . . Parts Lost 2 | . . 2 Power . | . . . Propulsion 1 | . . 1 Utility . | . . . Weapon 1 | . . 1 Highest Loss Streak 1 | . . 1 To Critical Strikes . | . . . Average Backups 13 | 3 11 14 Power 1 | . 1 1 Propulsion 5 | 1 6 5 Utility 2 | . 1 2 Weapon 5 | 1 3 6 Tool/Special . | . . . Unused Backups 23 | . 3 20 Power 2 | . . 2 Propulsion 7 | . 1 6 Utility 3 | . . 3 Weapon 11 | . 2 9 Tool/Special . | . . . Average Slot Usage (%) 99 | . 100 99 Engine 14 | . 14 14 Wheel 27 | . 28 27 Device 6 | . 14 4 Storage 14 | . 14 14 Protection 7 | . . 9 Energy Gun 1 | . 7 . Ballistic Gun 16 | . 20 15 Ballistic Cannon 7 | . . 9 Piercing Weapon 2 | . . 3 Peak Build Rating 21 | 9 15 21 Average Rating 15 | 5 11 17 On Entrance 8 | . 9 15 Naked Turns . | . . . Heaviest Build 35 | 15 32 35 Greatest Support 40 | 32 24 40 Greatest Overweight (x) 1 | . 1 1 Average Overweight (x) . | . . . Largest Inventory Capacity 15 | 8 15 15 Average Capacity 14 | 7 13 15 Most Carried 15 | 8 15 15 Average Carried 13 | 4 11 14 Final Capacity 15 | 8 15 15 Final Carried 15 | 8 15 15 Class Distribution -------------------- 100% | Mutant Dominant Class ---------------- Mutant | -10/Materials Mutant | -10/Subcaves Resources | -11 -10 -10 ----------- Run | Yrd Mat Sub Matter Collected 1287 | 243 189 855 Remotely . | . . . Salvage Created 1211 | 188 257 766 Parts 83 | 15 19 49 Haulers Intercepted 1 | . 1 . Recyclers Shooed 1 | . 1 . Parts Field Recycled . | . . . Retrieved Matter . | . . . Parts Self-Destructed 18 | . . 18 Prevented . | . . . Kills | -11 -10 -10 ------- Run | Yrd Mat Sub Combat Hostiles Destroyed 24 | . 5 19 Guns 15 | . 5 10 Cannons 9 | . . 9 Classes Destroyed 9 | 2 3 4 Tunneler 5 | 5 . . Hauler 1 | . 1 . Recycler 2 | 1 1 . Turret 1 | . . 1 Watcher 1 | . 1 . Swarmer 9 | . 5 4 Grunt 3 | . . 3 Sentry 1 | . . 1 Subdweller 11 | . . 11 Best Kill Streak 6 | 4 2 6 Combat Bots Only 6 | . 2 6 Max Kills in Single Turn 2 | 1 1 2 Gunslinging 1 | . . 1 Exploded . | . . . Melee . | . . . Uniques/NPCs Destroyed . | . . . Combat | -11 -10 -10 -------- Run | Yrd Mat Sub Hostile Shots Fired 173 | . 19 154 Missed 58 | . 8 50 Hits 115 | . 11 104 Projectile 115 | . 11 104 AOE 3 | . . 3 Damage Taken 1401 | . 91 1310 Core 257 | . 7 250 Absorbed by Shields . | . . . Core Remaining (%) 100 | 100 . . Volleys Fired 127 | 13 19 95 Largest 2 | 2 2 2 Hottest 83 | 60 60 83 Shots Fired 234 | 26 38 170 Gun 165 | 26 38 101 Cannon 69 | . . 69 Launcher . | . . . Special . | . . . Kinetic 205 | 13 32 160 Thermal 10 | . . 10 Explosive . | . . . Electromagnetic 19 | 13 6 . Robot Hit Streak 16 | 4 6 16 Robot Miss Streak 3 | 2 3 2 Penetration Max . | . . . Secondary Targets 2 | . . 2 Max Gunslinging Chain 1 | . . 1 Shots Hit Robots 136 | 15 20 101 Core Hits 49 | 7 8 34 Critical Kills . | . . . Critical Parts Destroyed 1 | . . 1 Critical Strikes 6 | . . 6 Destroy 2 | . . 2 Blast 4 | . . 4 Melee Attacks 6 | . . 6 Impact . | . . . Slashing . | . . . Piercing 6 | . . 6 Sneak Attacks . | . . . Combat Hostiles . | . . . Follow-up Attacks . | . . . Damage Inflicted 2487 | 189 308 1990 Guns 1623 | 189 308 1126 Cannons 642 | . . 642 Explosions . | . . . Melee 222 | . . 222 Ramming . | . . . Kinetic 1924 | 109 256 1559 Thermal 209 | . . 209 Explosive . | . . . Electromagnetic 132 | 80 52 . Impact . | . . . Slashing . | . . . Piercing 222 | . . 222 Highest Corruption 3 | . 3 3 Average Corruption 2 | . 2 3 Corruption Purged . | . . . Corruption Blocked . | . . . Effects 36 | . 4 32 Message Errors 3 | . . 3 Matter Fused 9 | . . 9 Heat Flow Errors 11 | . 4 7 Energy Discharges 6 | . . 6 Data Loss (minor) 3 | . . 3 Data Loss (major) 1 | . . 1 Alerts 2 | . . 2 Weapon Failures 1 | . . 1 Overload Shots . | . . . Overflow Damage 21 | . . 21 Projectiles 21 | . . 21 Explosions . | . . . Melee . | . . . Knockbacks 10 | . . 10 Impact . | . . . Kinetic 10 | . . 10 Secondary . | . . . Self-Inflicted Damage . | . . . Shots . | . . . Rammed . | . . . Targets Rammed . | . . . Kicked . | . . . Crushed . | . . . Highest Temperature 288 | . 288 241 Average Temperature 121 | . 133 109 Received Heat Transfer 321 | . . 321 Effects 1 | . . 1 Interference 1 | . . 1 Siege Activations . | . . . Martial Activations . | . . . Shielding Activations . | . . . Robots Disrupted . | . . . Combat Hostiles . | . . . Robots Corrupted 1 | . 1 . Combat Hostiles . | . . . Parts Fried 1 | . 1 . Impact Corruptions . | . . . Robots Melted . | . . . Combat Hostiles . | . . . Parts Melted 1 | . . 1 Heat Transferred 250 | . . 250 Parts Sabotaged . | . . . Parts Stolen . | . . . Parts Stripped . | . . . Power Chain Reactions . | . . . Alert | -11 -10 -10 ------- Run | Yrd Mat Sub Maximum Alert Level . | . . . Low Security (%) 100 | 100 100 . Level 1 . | . . . Level 2 . | . . . Level 3 . | . . . Level 4 . | . . . Level 5 . | . . . High Security . | . . . Max Security . | . . . Peak Influence 66 | 15 66 . Initial . | . . . Average 13 | 2 17 . Influence Increases 499 | 30 174 295 Destroy 0b10 Robot/C 280 | . 100 180 Destroy 0b10 Robot/NC 45 | 30 15 . Destroy Leader 34 | . 24 10 Successful Hack 4 | . 4 . Destroy Structure 1 | . 1 . Lose Combat Pursuer 135 | . 30 105 Influence Decreases 499 | 30 174 295 Time Decay 433 | 30 108 295 Purge Threat 66 | . 66 . Squads Dispatched 1 | . 1 . Investigation . | . . . Extermination . | . . . Reinforcement 1 | . 1 . Assault . | . . . Garrison . | . . . Intercept . | . . . Searches Triggered . | . . . Construction Impeded . | . . . Haulers Reinforced . | . . . Active Scanning Responses . | . . . Cargo Convoy Interrupts . | . . . Stealth | -11 -10 -10 --------- Run | Yrd Mat Sub Distress Signals . | . . . Communications Jammed . | . . . Distress Signals . | . . . Times Spotted 38 | . 13 25 Peak Tracking Total 6 | . 4 6 Tactical Retreats 7 | . 2 5 Traps | -11 -10 -10 ------- Run | Yrd Mat Sub Traps Triggered 3 | . 2 1 Indirectly . | . . . Trap Hack Attempts . | . . . Triggered . | . . . Disarmed . | . . . Reprogrammed . | . . . Reused . | . . . Traps Extracted . | . . . Installed . | . . . Triggered . | . . . Most Traps Carried 1 | . . 1 Machines | -11 -10 -10 ---------- Run | Yrd Mat Sub Machines Disabled 1 | . . 1 Max in Single Turn 1 | . . 1 Machines Repaired . | . . . Machines Dismantled . | . . . Machines Sabotaged . | . . . Overloaded Fab Kills . | . . . Hacking | -11 -10 -10 --------- Run | Yrd Mat Sub Machines Accessed 2 | . 2 . Terminals 2 | . 2 . Fabricators . | . . . Repair Stations . | . . . Recycling Units . | . . . Scanalyzers . | . . . Garrison Access . | . . . Total Hacks 6 | . 6 . Successful 4 | . 4 . Failed 2 | . 2 . Catastrophic . | . . . Database Lockouts . | . . . Manual 4 | . 4 . Terminals 6 | . 6 . Fabricators . | . . . Repair Stations . | . . . Recycling Units . | . . . Scanalyzers . | . . . Garrison Access . | . . . Terminal Hacks 2 | . 2 . Unreport Threat 1 | . 1 . Zone Layout 1 | . 1 . Fabricator Hacks . | . . . Repair Station Hacks . | . . . Recycling Unit Hacks . | . . . Scanalyzer . | . . . Garrison Access Hacks . | . . . Unauthorized Hacks 2 | . 2 . Terminals 2 | . 2 . Botnet 2 | . 2 . Fabricators . | . . . Repair Stations . | . . . Recycling Units . | . . . Scanalyzers . | . . . Garrison Access . | . . . Data Cores Recovered . | . . . Used . | . . . Hacking Detections 1 | . 1 . Full Trace Events . | . . . Feedback Events . | . . . Feedback Blocked . | . . . Robot Schematics Acquired . | . . . Robots Built . | . . . Authchips . | . . . Time . | . . . Total Robot Build Rating . | . . . Part Schematics Acquired . | . . . Parts Built . | . . . Authchips . | . . . Time . | . . . Total Part Build Rating . | . . . Parts Repaired . | . . . Time . | . . . Parts Recycled . | . . . Recycled Matter . | . . . Retrieved Matter . | . . . Retrieved Components . | . . . Parts Scanalyzed . | . . . Part Schematics Acquired . | . . . Parts Damaged . | . . . Bothacking | -11 -10 -10 ------------ Run | Yrd Mat Sub Used RIF Installer . | . . . Robots Hacked . | . . . Non-combat . | . . . Combat . | . . . Robot Hacks Applied . | . . . Relay Couplers Released . | . . . Fabnet Peak Effective % . | . . . Robots Rewired . | . . . Allies Hacked . | . . . Hacks Repelled . | . . . Allies | -11 -10 -10 -------- Run | Yrd Mat Sub Total Allies . | . . . Largest Group . | . . . Highest-Rated Group . | . . . Highest-Rated Ally . | . . . Total Orders . | . . . Ally Attacks . | . . . Total Damage . | . . . Kills . | . . . Allies Corrupted . | . . . Allies Melted . | . . . Intel | -11 -10 -10 ------- Run | Yrd Mat Sub Active Infowar (turns) 1079 | 19 398 662 Terrain 1079 | 19 398 662 Robot Analysis Total . | . . . Derelict Logs Recovered 1 | . . 1 Drone Launches . | . . . Drone Recoveries . | . . . Exploration | -11 -10 -10 ------------- Run | Yrd Mat Sub Turns Passed 2514 | 154 398 1962 Spaces Moved 1815 | 112 326 1377 Core 21 | 21 . . Treads . | . . . Legs . | . . . Wheels 1794 | 91 326 1377 Hover . | . . . Flight . | . . . Fastest Speed 50 | 50 80 100 Average Speed 104 | 80 96 108 Slowest Speed 112 | 100 105 112 Overloaded Moves . | . . . Propulsion Burnouts . | . . . Robots Hopped . | . . . Potential Cave-ins . | . . . Cave-ins Triggered . | . . . Exploration Rate (%) 38 | 5 45 66 Regions Visited 2 Branch Regions 1 Pre-discovered Areas . | . . . Known Exits Taken . | . . . Unknown Exits Taken 2 | 1 1 . Scrap Searched 3 | . . 3 Spaces Dug . | . . . Terrain Destroyed . | . . . Melee . | . . . Projectile . | . . . AOE . | . . . Terrain Rammed . | . . . Walls Destroyed . | . . . Machines Disabled . | . . . Actions | -11 -10 -10 --------- Run | Yrd Mat Sub Total 2197 | 146 373 1678 Wait 143 | . 6 137 Move 1813 | 111 325 1377 Hop . | . . . Pick Up 44 | 12 11 21 Fast Attach 5 | 3 . 2 Attach 5 | 4 . 1 Detach . | . . . Swap 22 | 3 6 13 Drop 32 | . 6 26 Fire 127 | 13 19 95 Melee 6 | . . 6 Ram . | . . . Kick . | . . . Crush . | . . . Escape Stasis . | . . . Rewire . | . . . Trap . | . . . Miscellaneous . | . . . Route ------- -11/Scrapyard -10/Materials (discovered 3 exits: [*Min x2] / [*Sub]) -10/Subcaves (discovered 3 exits: [*Mat x2] / [*Rec]) History --------- Turn | Location | Event 7 | -11/Scrapyard | Discovered new exit (range 15) 155 | -11/Scrapyard | Entered Materials 167 | -10/Materials | Discovered new exit (range 5) 306 | -10/Materials | Build established: Mutant 465 | -10/Materials | Discovered new exit (range 12) 548 | -10/Materials | Discovered new exit (range 6) 553 | -10/Materials | Entered Subcaves 553 | -10/Subcaves | Discovered new exit (range 11) 554 | -10/Subcaves | Approached by a straggling Scientist 1031 | -10/Subcaves | Disturbed a concealed Subdweller 1213 | -10/Subcaves | Discovered new exit (range 9) 1344 | -10/Subcaves | Core integrity fell below 50% 1406 | -10/Subcaves | A swath of the cavern ceiling suddenly collapsed 1526 | -10/Subcaves | Shifting Twisted Machinery released Sub. Shrapnel Launcher 1532 | -10/Subcaves | Discovered new exit (range 9) 1538 | -10/Subcaves | Shifting Twisted Machinery released Mak. Spear 1895 | -10/Subcaves | Shifting Twisted Machinery released Mak. Power Source 1899 | -10/Subcaves | Shifting Twisted Machinery released Sub. Power Source 2506 | -10/Subcaves | Core integrity fell below 20% 2515 | -10/Subcaves | Destroyed by Z0-WIL(R) with Subdweller Laser Last Messages --------------- 02322_ Subatomizers dissect the EM Pulse Gun. 02356_ DG>IINDBA4UJLJKJQ5PUZCP|K3X3WUOL0PG| 02381_ Dropped Mining Laser. 02382_ Acquired Piercing Trap. 02418_ System corrupted: Matter fused (-9). 02428_ Sub. Monowheel shoots sparks and powers down. 02434_ 8C-BE9(R): "OHNO!" 02436_ Acquired 18 matter. 02450_ System corrupted: Heat flow error (+191). 02461_ 8C-BE9(R) destroyed. 02466_ Acquired 46 matter. 02469_ Dropped Broken Sub. Monowheel. 02469_ Acquired Sub. Power Source. 02497_ System corrupted: Matter fused (-9). 02497_ Sub. Monowheel destroyed. 02502_ Sub. Power Source melted. 02502_ SU-ZM0(R) destroyed. 02502_ Switching to secondary target: Z0-WIL(R). 02515_ System corrupted: Energy discharge (-59). Map ----- +----------------------------------------------------+ | ?????????????????????????????????????????????????? | | ?????????????????????????????????????????????????? | | ?????????????????????????????????????????????????? | | ?????????????????????????????????????????????????? | | ?????????????????????????????????????????????????? | | ?????????????????????????????????????????????????? | | ?????????????????????????????????????????????????? | | ?????????????????????????????????????????????????? | | ?????????????????????????????????????????????????? | | ?????????????????????????????????????????????????? | | ?????????????????????????????????????????????????? | | ?????????????????????????????????????????????????? | | ???????????????????????????????????"????"????????? | | ??????????????????????????????????? ?? ????????? | | ???????????????????????????????????# ? ????????? | | ???????????????????????????????????# # ???????? | | ?????????????????????????????????### # #???????? | | ?????????????????????????????????# # # #??"#???? | | ???????????? ???????????????????# # ##? #??? | | ?????????" """"??????????????????# ? ???? | | ?????????" """#????????????????## #? ????? | | ??????????# " ##?????????????## #?? ##???? | | ??????????# ????????????# ### #???? | | ???????????? ????????????# " #"" #???? | | ??????????????? ?########### ##""" #????? | | ?????????????????# ## @## ## ## " #????? | | ?????????????????# !%= #????? | | ?????????????????## R #????? | | ??????????????????# ###### ### & ##???? | | ??????????????????####????####?# ## = #???? | | ???????????????????????????????## ### #???? | | ????????????????????????????????###?#### ##???? | | ???????????????????????????????????????### ###??? | | ????????????????????????????????????????## #??? | | ???????????????????????#????????????????# # ##??? | | ????????????????????????????????????????## #???? | | ????????????????????????????????????????# ##???? | | ?????????????????#??????????????????????## #???? | | ??????#?????????????????#???????????????# ##???? | | ????????????????????????#???????????????## #???? | | ?????????#??????????????????#????????????# ##???? | | ????????#?????#???????????????????????#### ##???? | | ???????????#?##?????#????????????#????# #???? | | ??????????#??##?#???#???????#????##??## ##??? | | ?##???????#???#????????????????#??#??# #??? | | ??????????#???????????#???#?????#???## #??? | | ????#??#????###########?#???#???????# ##??? | | ?########??## ## ######?#??????# ##???? | | ?#" "#??# #?# ##= #???????## #????? | | ?# %#?## ### & & ##??????# #????? | +----------------------------------------------------+ Best States ------------- Heat Dissipation 25 Energy Generation 15 Energy Capacity 250 Matter Stores 300 Matter Capacity 300 Sight Range 16 Terrain Scan Range 16 Terrain Scan Density 10 Armor Coverage 100 Evasion (%) 50 Item Schematics ----------------- None Robot Schematics ------------------ None Fabricated ------------ Nothing Repaired ---------- Nothing Alien Tech Used ----------------- None Achievements -------------- None Challenges ------------ None Game ------ Seed HypertargetingLaserBox Manual? 0 Play Time 00:21:08 Cumulative 75.7 hours Start 2025.05.27 @ 13:06:51 End 2025.05.27 @ 15:05:16 Sessions 1 Manual Loads 0 Difficulty Rogue Special Mode None Game No. 54 Rogue 54 Adventurer 0 Explorer 0 Win Type - Total 0 Types 0/0/0/0/0/0/0/0/0/0 Lore% 55 Gallery% 43 Achievement% 39 Wizard Run 0 Options --------- Layout 1 ASCII 0 Keyboard 0 Movement Mouse Keybinds 0 Fullscreen 1 Font 24/Smallcaps Map View 50x35 Zoom Use 0% Tactical HUD 1 Map Filters NONE Filters NONE Steam 1 RUN: 792d3a38-4426-4328-af02-23e5c31838cb